Cogmind - Beta 13 @@@ ROGUE MODE // 2024.04.15 @ 21:40:56 Player: ToasterKoishi Result: Destroyed by H-61 Shepherd with Heavy Assault Cannon Performance ------------- Evolutions (3) 1500 Regions Visited (8) 1600 Robots Destroyed (0) 0 Value Destroyed (0) 0 Prototype IDs (3) 60 Alien Tech Used (0) 0 Bonus (1228) 1228 TOTAL SCORE: 4388 Bonus ------- Pacifist 928 Aligned with FarCom 300 Cogmind --------- Core Integrity 0/700 Matter 300/300 Energy 99/100 System Corruption 0% Temperature Cool (0) Movement Core (50) Location -7/Factory Parts ------- > --- POWER (1) -------- (None) > --- PROPULSION (2) --- (None) > --- UTILITY (8) ------ Visual Processing Unit Advanced Visual Processing Unit Improved Signal Interpreter > --- WEAPON (2) ------- (None) > --- INVENTORY (5) ---- Improved Signal Interpreter Improved Signal Interpreter Firepult Improved Datajack Peak State ------------ > --- POWER ------------ (None) > --- PROPULSION ------- (None) > --- UTILITY ---------- Machine Analyzer Visual Processing Unit Advanced Visual Processing Unit Improved Signal Interpreter > --- WEAPON ----------- Firepult > --- INVENTORY -------- Improved Signal Interpreter Improved Signal Interpreter Improved Datajack [Rating: 31] Favorites ----------- Power Ion Engine Engine Ion Engine Propulsion None Utility Visual Processing Unit Device Seismic Detector Processor Visual Processing Unit Hackware System Shield Weapon Axe Energy Cannon Firepult Slashing Weapon Axe Build | -11 -10 -10 -9 -9 -9 -8 -8 -7 ------- Run | Yrd Mat Min Mat Min Exi Min Mat Fac Slots Evolved 6 | . . . 2 . . . 2 2 Power . | . . . . . . . . . Propulsion . | . . . . . . . . . Utility 6 | . . . 2 . . . 2 2 Weapon . | . . . . . . . . . Parts Attached 15 | 1 1 . 3 . 3 . 4 3 Power 3 | 1 1 . 1 . . . . . Engine 3 | 1 1 . 1 . . . . . Core . | . . . . . . . . . Reactor . | . . . . . . . . . Propulsion . | . . . . . . . . . Treads . | . . . . . . . . . Leg . | . . . . . . . . . Wheel . | . . . . . . . . . Hover . | . . . . . . . . . Flight . | . . . . . . . . . Utility 8 | . . . 2 . 1 . 3 2 Device 3 | . . . . . 1 . 1 1 Storage . | . . . . . . . . . Processor 4 | . . . 2 . . . 1 1 Hackware 1 | . . . . . . . 1 . Protection . | . . . . . . . . . Artifact . | . . . . . . . . . Weapon 4 | . . . . . 2 . 1 1 Energy Gun . | . . . . . . . . . Energy Cannon 3 | . . . . . 2 . . 1 Ballistic Gun . | . . . . . . . . . Ballistic Cannon . | . . . . . . . . . Launcher . | . . . . . . . . . Special Weapon . | . . . . . . . . . Impact Weapon . | . . . . . . . . . Slashing Weapon 1 | . . . . . . . 1 . Piercing Weapon . | . . . . . . . . . Special Melee Weapon . | . . . . . . . . . Unidentified Prototypes 3 | . . . . . 3 . . . Parts Lost 7 | . 1 . 1 . . . 3 2 Power 2 | . 1 . 1 . . . . . Propulsion . | . . . . . . . . . Utility 4 | . . . . . . . 2 2 Weapon 1 | . . . . . . . 1 . Highest Loss Streak 3 | . 1 . 1 . . . 3 2 To Critical Strikes . | . . . . . . . . . Average Slot Usage (%) 21 | . 14 . 18 22 22 22 34 28 Engine 1 | . 14 . 1 . . . . . Processor 17 | . . . 16 22 22 22 23 27 Slashing Weapon 1 | . . . . . . . 6 . Naked Turns 242 | . 6 154 82 . . . . . Heaviest Build 5 | 5 5 . 3 . . . 3 1 Greatest Support 3 | 3 3 3 3 3 3 3 3 3 Greatest Overweight (x) 1 | 1 1 . . . . . . . Average Overweight (x) . | . . . . . . . . . Largest Inventory Capacity 5 | 5 5 5 5 5 5 5 5 5 Average Capacity 5 | 5 5 5 5 5 5 5 5 5 Most Carried 5 | . 2 2 5 4 5 5 5 5 Average Carried 4 | . 1 2 4 4 4 5 5 4 Final Capacity 5 | 5 5 5 5 5 5 5 5 5 Final Carried 5 | . 2 2 4 4 5 5 5 5 Class Distribution -------------------- 92% | Mutant 7% | Scout Dominant Class ---------------- Mutant | -10/Materials Mutant | -10/Mines Mutant | -9/Materials Mutant | -9/Mines Mutant | -9/Exiles Mutant | -8/Mines Mutant | -8/Materials Scout | -7/Factory Resources | -11 -10 -10 -9 -9 -9 -8 -8 -7 ----------- Run | Yrd Mat Min Mat Min Exi Min Mat Fac Matter Collected 313 | 158 . 11 76 . 30 . 12 26 Remotely . | . . . . . . . . . Salvage Created . | . . . . . . . . . Parts . | . . . . . . . . . Haulers Intercepted . | . . . . . . . . . Recyclers Shooed . | . . . . . . . . . Parts Field Recycled . | . . . . . . . . . Retrieved Matter . | . . . . . . . . . Parts Self-Destructed . | . . . . . . . . . Prevented . | . . . . . . . . . Kills | -11 -10 -10 -9 -9 -9 -8 -8 -7 ------- Run | Yrd Mat Min Mat Min Exi Min Mat Fac Combat Hostiles Destroyed . | . . . . . . . . . Classes Destroyed . | . . . . . . . . . Best Kill Streak . | . . . . . . . . . Combat Bots Only . | . . . . . . . . . Max Kills in Single Turn . | . . . . . . . . . Gunslinging . | . . . . . . . . . Exploded . | . . . . . . . . . Melee . | . . . . . . . . . Uniques/NPCs Destroyed . | . . . . . . . . . Combat | -11 -10 -10 -9 -9 -9 -8 -8 -7 -------- Run | Yrd Mat Min Mat Min Exi Min Mat Fac Hostile Shots Fired 221 | . 12 . 28 . . 9 42 130 Missed 105 | . 5 . 10 . . 2 19 69 Damage Taken 1834 | . 77 . 254 . . 111 503 889 Core 1490 | . 21 . 211 . . 111 405 742 Absorbed by Shields . | . . . . . . . . . Core Remaining (%) 59 | 100 . 91 . . . 19 26 . Volleys Fired 1 | . . . . . . . . 1 Largest 1 | . . . . . . . . 1 Hottest 250 | . . . . . . . . 250 Shots Fired 1 | . . . . . . . . 1 Gun . | . . . . . . . . . Cannon 1 | . . . . . . . . 1 Launcher . | . . . . . . . . . Special . | . . . . . . . . . Kinetic . | . . . . . . . . . Thermal 1 | . . . . . . . . 1 Explosive . | . . . . . . . . . Electromagnetic . | . . . . . . . . . Robot Hit Streak . | . . . . . . . . . Robot Miss Streak . | . . . . . . . . . Penetration Max . | . . . . . . . . . Secondary Targets . | . . . . . . . . . Shots Hit Robots . | . . . . . . . . . Core Hits 2 | . . . . . . . . 2 Critical Kills . | . . . . . . . . . Critical Parts Destroyed . | . . . . . . . . . Critical Strikes . | . . . . . . . . . Melee Attacks 4 | . . . . . . . 4 . Impact . | . . . . . . . . . Slashing 4 | . . . . . . . 4 . Piercing . | . . . . . . . . . Sneak Attacks . | . . . . . . . . . Combat Hostiles . | . . . . . . . . . Follow-up Attacks . | . . . . . . . . . Damage Inflicted 53 | . . . . . . . 12 41 Guns . | . . . . . . . . . Cannons . | . . . . . . . . . Explosions 41 | . . . . . . . . 41 Melee . | . . . . . . . . . Ramming 12 | . . . . . . . 12 . Kinetic . | . . . . . . . . . Thermal 41 | . . . . . . . . 41 Explosive . | . . . . . . . . . Electromagnetic . | . . . . . . . . . Impact . | . . . . . . . . . Slashing . | . . . . . . . . . Piercing . | . . . . . . . . . Highest Corruption . | . . . . . . . . . Average Corruption . | . . . . . . . . . Corruption Purged . | . . . . . . . . . Corruption Blocked . | . . . . . . . . . Overload Shots . | . . . . . . . . . Overflow Damage . | . . . . . . . . . Projectiles . | . . . . . . . . . Explosions . | . . . . . . . . . Melee . | . . . . . . . . . Knockbacks . | . . . . . . . . . Impact . | . . . . . . . . . Kinetic . | . . . . . . . . . Secondary . | . . . . . . . . . Self-Inflicted Damage 5 | . . . . . . . 5 . Shots . | . . . . . . . . . Rammed 3 | . . . . . . . 3 . Targets Rammed 3 | . . . . . . . 3 . Kicked . | . . . . . . . . . Crushed . | . . . . . . . . . Highest Temperature 206 | . . . . . . . . 206 Average Temperature 102 | . . . . . . . . 102 Received Heat Transfer 306 | . 45 . 87 . . 36 90 48 Siege Activations . | . . . . . . . . . Robots Corrupted . | . . . . . . . . . Combat Hostiles . | . . . . . . . . . Parts Fried . | . . . . . . . . . Impact Corruptions . | . . . . . . . . . Robots Melted . | . . . . . . . . . Combat Hostiles . | . . . . . . . . . Parts Melted . | . . . . . . . . . Heat Transferred 240 | . . . . . . . . 240 Parts Sabotaged . | . . . . . . . . . Parts Stolen . | . . . . . . . . . Parts Stripped . | . . . . . . . . . Power Chain Reactions . | . . . . . . . . . Alert | -11 -10 -10 -9 -9 -9 -8 -8 -7 ------- Run | Yrd Mat Min Mat Min Exi Min Mat Fac Peak Influence 398 | . 15 1 398 76 . . 123 271 Initial 76 | . . 1 . 76 . . . 55 Average 94 | . 12 1 211 76 . . 20 94 Maximum Alert Level 1 | . . . 1 . . . . 1 Low Security (%) 81 | 100 100 100 44 100 . 100 100 93 Level 1 18 | . . . 55 . . . . 6 Level 2 . | . . . . . . . . . Level 3 . | . . . . . . . . . Level 4 . | . . . . . . . . . Level 5 . | . . . . . . . . . High Security . | . . . . . . . . . Max Security . | . . . . . . . . . Squads Dispatched 10 | . 1 . 2 . . . . 7 Investigation 5 | . . . 1 . . . . 4 Extermination . | . . . . . . . . . Reinforcement 4 | . 1 . 1 . . . . 2 Assault . | . . . . . . . . . Garrison 1 | . . . . . . . . 1 Intercept . | . . . . . . . . . Searches Triggered . | . . . . . . . . . Construction Impeded . | . . . . . . . . . Haulers Reinforced . | . . . . . . . . . Active Scanning Responses . | . . . . . . . . . Cargo Convoy Interrupts . | . . . . . . . . . Stealth | -11 -10 -10 -9 -9 -9 -8 -8 -7 --------- Run | Yrd Mat Min Mat Min Exi Min Mat Fac Distress Signals 8 | . 1 . 5 . . . 2 . Communications Jammed . | . . . . . . . . . Distress Signals . | . . . . . . . . . Times Spotted 75 | . 6 . 19 . . 4 12 34 Peak Tracking Total 22 | . 6 . 9 . . 4 12 22 Tactical Retreats 7 | . . . 1 . . . 3 3 Traps | -11 -10 -10 -9 -9 -9 -8 -8 -7 ------- Run | Yrd Mat Min Mat Min Exi Min Mat Fac Traps Triggered 3 | . 1 . 1 . . . . 1 Indirectly . | . . . . . . . . . Trap Hack Attempts . | . . . . . . . . . Triggered . | . . . . . . . . . Disarmed . | . . . . . . . . . Reprogrammed . | . . . . . . . . . Reused . | . . . . . . . . . Traps Extracted . | . . . . . . . . . Installed . | . . . . . . . . . Triggered . | . . . . . . . . . Machines | -11 -10 -10 -9 -9 -9 -8 -8 -7 ---------- Run | Yrd Mat Min Mat Min Exi Min Mat Fac Machines Disabled . | . . . . . . . . . Max in Single Turn . | . . . . . . . . . Machines Repaired . | . . . . . . . . . Machines Dismantled . | . . . . . . . . . Machines Sabotaged . | . . . . . . . . . Overloaded Fab Kills . | . . . . . . . . . Hacking | -11 -10 -10 -9 -9 -9 -8 -8 -7 --------- Run | Yrd Mat Min Mat Min Exi Min Mat Fac Machines Accessed 14 | . 1 . 3 . 2 . 4 4 Terminals 10 | . 1 . 3 . . . 3 3 Fabricators . | . . . . . . . . . Repair Stations . | . . . . . . . . . Recycling Units 1 | . . . . . . . 1 . Scanalyzers . | . . . . . . . . . Garrison Access 1 | . . . . . . . . 1 Total Hacks 64 | . 3 . 7 . 32 . 9 13 Successful 42 | . . . 1 . 32 . 4 5 Failed 22 | . 3 . 6 . . . 5 8 Catastrophic 7 | . 1 . 2 . . . 2 2 Database Lockouts . | . . . . . . . . . Manual 25 | . 3 . 7 . 1 . 10 4 Terminals 27 | . 3 . 7 . . . 6 11 Fabricators . | . . . . . . . . . Repair Stations . | . . . . . . . . . Recycling Units 3 | . . . . . . . 3 . Scanalyzers . | . . . . . . . . . Garrison Access 2 | . . . . . . . . 2 Terminal Hacks 40 | . . . 1 . 32 . 2 5 Record 32 | . . . . . 32 . . . Branch Access Points 2 | . . . 1 . . . 1 . Emergency Access Points 3 | . . . . . . . 1 2 Terminal Index 1 | . . . . . . . . 1 Locate Traps 1 | . . . . . . . . 1 Zone Layout 1 | . . . . . . . . 1 Fabricator Hacks . | . . . . . . . . . Repair Station Hacks . | . . . . . . . . . Recycling Unit Hacks . | . . . . . . . . . Scanalyzer . | . . . . . . . . . Garrison Access Hacks . | . . . . . . . . . Unauthorized Hacks 2 | . . . . . . . 2 . Terminals . | . . . . . . . . . Fabricators . | . . . . . . . . . Repair Stations . | . . . . . . . . . Recycling Units 2 | . . . . . . . 2 . Monitor 1 | . . . . . . . 1 . Mask 1 | . . . . . . . 1 . Scanalyzers . | . . . . . . . . . Garrison Access . | . . . . . . . . . Data Cores Recovered . | . . . . . . . . . Used . | . . . . . . . . . Hacking Detections 11 | . 1 . 3 . . . 3 4 Full Trace Events 3 | . . . . . . . . 3 Feedback Events . | . . . . . . . . . Feedback Blocked . | . . . . . . . . . Robot Schematics Acquired . | . . . . . . . . . Robots Built . | . . . . . . . . . Authchips . | . . . . . . . . . Time . | . . . . . . . . . Total Robot Build Rating . | . . . . . . . . . Part Schematics Acquired . | . . . . . . . . . Parts Built . | . . . . . . . . . Authchips . | . . . . . . . . . Time . | . . . . . . . . . Total Part Build Rating . | . . . . . . . . . Parts Repaired . | . . . . . . . . . Time . | . . . . . . . . . Parts Recycled . | . . . . . . . . . Recycled Matter . | . . . . . . . . . Retrieved Matter . | . . . . . . . . . Retrieved Components . | . . . . . . . . . Parts Scanalyzed . | . . . . . . . . . Part Schematics Acquired . | . . . . . . . . . Parts Damaged . | . . . . . . . . . Bothacking | -11 -10 -10 -9 -9 -9 -8 -8 -7 ------------ Run | Yrd Mat Min Mat Min Exi Min Mat Fac Used RIF Installer . | . . . . . . . . . Robots Hacked . | . . . . . . . . . Non-combat . | . . . . . . . . . Combat . | . . . . . . . . . Robot Hacks Applied . | . . . . . . . . . Relay Couplers Released . | . . . . . . . . . Fabnet Peak Effective % . | . . . . . . . . . Robots Rewired . | . . . . . . . . . Allies Hacked . | . . . . . . . . . Hacks Repelled . | . . . . . . . . . Allies | -11 -10 -10 -9 -9 -9 -8 -8 -7 -------- Run | Yrd Mat Min Mat Min Exi Min Mat Fac Total Allies 6 | . . 5 . 1 . . . . Largest Group 5 | . . 5 5 1 . . . . Highest-Rated Group 85 | . . 85 85 31 . . . . Highest-Rated Ally 31 | . . 31 31 31 . . . . Total Orders 1 | . . . 1 . . . . . FOLLOW 1 | . . . 1 . . . . . Ally Attacks 48 | . . . 48 . . . . . Total Damage 728 | . . . 728 . . . . . Kills 11 | . . . 11 . . . . . Allies Corrupted . | . . . . . . . . . Allies Melted . | . . . . . . . . . Intel | -11 -10 -10 -9 -9 -9 -8 -8 -7 ------- Run | Yrd Mat Min Mat Min Exi Min Mat Fac Robot Analysis Total . | . . . . . . . . . Derelict Logs Recovered 3 | . . 1 . 2 . . . . Drone Launches . | . . . . . . . . . Drone Recoveries . | . . . . . . . . . Exploration | -11 -10 -10 -9 -9 -9 -8 -8 -7 ------------- Run | Yrd Mat Min Mat Min Exi Min Mat Fac Turns Passed 1493 | 19 95 154 404 137 225 11 260 188 Spaces Moved 2615 | 23 96 258 694 272 432 22 458 360 Core 2615 | 23 96 258 694 272 432 22 458 360 Treads . | . . . . . . . . . Legs . | . . . . . . . . . Wheels . | . . . . . . . . . Hover . | . . . . . . . . . Flight . | . . . . . . . . . Fastest Speed 50 | 50 50 50 50 50 50 50 50 50 Average Speed 51 | 80 95 50 50 50 50 50 50 50 Slowest Speed 100 | 100 100 50 50 50 50 50 50 50 Overloaded Moves . | . . . . . . . . . Propulsion Burnouts . | . . . . . . . . . Robots Hopped . | . . . . . . . . . Cave-ins Triggered . | . . . . . . . . . Exploration Rate (%) 44 | 3 29 69 73 65 92 7 43 21 Regions Visited 8 Branch Regions 4 Pre-discovered Areas 3 | . . 1 . 1 1 . . . Known Exits Taken 5 | . . . 1 1 1 1 1 . Unknown Exits Taken 3 | 1 1 1 . . . . . . Scrap Searched 3 | . . 1 . 2 . . . . Spaces Dug 4 | . . . . . . . 4 . Terrain Destroyed 4 | . . . . . . . 4 . Melee 4 | . . . . . . . 4 . Projectile . | . . . . . . . . . AOE . | . . . . . . . . . Terrain Rammed . | . . . . . . . . . Walls Destroyed . | . . . . . . . . . Machines Disabled . | . . . . . . . . . Actions | -11 -10 -10 -9 -9 -9 -8 -8 -7 --------- Run | Yrd Mat Min Mat Min Exi Min Mat Fac Total 2732 | 23 98 282 750 272 441 21 479 366 Wait 86 | . . 25 49 1 1 . 9 1 Move 2607 | 22 95 257 693 271 431 21 457 360 Hop . | . . . . . . . . . Pick Up 8 | . 2 . 4 . 1 . 1 . Fast Attach 13 | 1 1 . 2 . 3 . 4 2 Attach 2 | . . . 1 . . . . 1 Detach 2 | . . . . . 1 . . 1 Swap . | . . . . . . . . . Drop 6 | . . . 1 . 4 . 1 . Fire 1 | . . . . . . . . 1 Melee 4 | . . . . . . . 4 . Ram 3 | . . . . . . . 3 . Kick . | . . . . . . . . . Crush . | . . . . . . . . . Escape Stasis . | . . . . . . . . . Rewire . | . . . . . . . . . Trap . | . . . . . . . . . Miscellaneous . | . . . . . . . . . Route ------- -11/Scrapyard -10/Materials (discovered 2 exits: *Mat / [*Min]) -10/Mines -9/Materials (discovered 4 exits: *Mat x2 / *Min / *Sto) -9/Mines (discovered 2 exits: *Mat / *Exi) -9/Exiles (discovered 2 exits: *Min x2) -8/Mines -8/Materials -7/Factory (discovered 1 exit: [*Fac]) History --------- Turn | Location | Event 2 | -11/Scrapyard | Met Revision 17 6 | -11/Scrapyard | Discovered new exit (range 15) 20 | -11/Scrapyard | Entered Materials 94 | -10/Materials | Discovered new exit (range 5) 103 | -10/Materials | Discovered new exit (range 16) 115 | -10/Materials | Entered Mines 120 | -10/Mines | Assisted by bots powering up and referring to "LRC-V3" 148 | -10/Mines | Learned location of Zion (-7) 250 | -10/Mines | Discovered new exit (range 7) 269 | -10/Mines | Entered Materials 269 | -9/Materials | Accompanied by 5 allies 269 | -9/Materials | Evolved 2 slots: Utility x2 274 | -9/Materials | Led the pair of lost Derelicts to an unsafe place 275 | -9/Materials | Discovered new exit (range 6) 306 | -9/Materials | Build established: Mutant 369 | -9/Materials | Discovered new exit (range 18) 390 | -9/Materials | Identified exit to Materials 574 | -9/Materials | Identified exit to Storage 638 | -9/Materials | Discovered exit to Materials (range 18) 653 | -9/Materials | Identified exit to Mines 667 | -9/Materials | Core integrity fell below 50% 673 | -9/Materials | Entered Mines 688 | -9/Mines | Discovered exit to Materials (range 17) 700 | -9/Mines | Received a Rocket Launcher from a helpful Derelict 712 | -9/Mines | Learned 2 Materials zone layouts 720 | -9/Mines | Deemed a non-threat by the Exiles lab entrance 720 | -9/Mines | Discovered new exit (range 5) 736 | -9/Mines | Received a Mining Laser from a helpful Derelict 810 | -9/Mines | Identified exit to Exiles 810 | -9/Mines | Entered Exiles 817 | -9/Exiles | Discovered new exit (range 15) 823 | -9/Exiles | Met 8R-AWN 830 | -9/Exiles | Met EX-HEX 858 | -9/Exiles | Met EX-DEC 869 | -9/Exiles | Visited The Gauntlet 935 | -9/Exiles | Met EX-BIN 963 | -9/Exiles | Aligned with FarCom system 963 | -9/Exiles | Given EX-Vault access code 975 | -9/Exiles | Opened EX-Vault 977 | -9/Exiles | Found Prototype Device 977 | -9/Exiles | Identified PSU Rigger 980 | -9/Exiles | Found Prototype Energy Cannon 980 | -9/Exiles | Identified YOLO Cannon 983 | -9/Exiles | Found Prototype Energy Cannon 983 | -9/Exiles | Identified Firepult 999 | -9/Exiles | Warned to stay clear of 0b10 Research branches 1028 | -9/Exiles | Discovered new exit (range 17) 1035 | -9/Exiles | Identified exit to Mines 1035 | -9/Exiles | Left Exiles lab with Firepult 1035 | -9/Exiles | Entered Mines 1043 | -8/Mines | Discovered exit to Materials (range 8) 1046 | -8/Mines | Entered Materials 1046 | -8/Materials | Evolved 2 slots: Utility x2 1292 | -8/Materials | Core integrity fell below 50% 1302 | -8/Materials | Discovered new exit (range 8) 1304 | -8/Materials | Lost 3 parts (2u1w) 1305 | -8/Materials | Identified exit to Factory 1306 | -8/Materials | Entered Factory 1306 | -7/Factory | Evolved 2 slots: Utility x2 1418 | -7/Factory | Garrison activated, responded to threat 1468 | -7/Factory | Core integrity fell below 50% 1490 | -7/Factory | Core integrity fell below 20% 1491 | -7/Factory | Discovered new exit (range 19) 1494 | -7/Factory | Destroyed by H-61 Shepherd with Heavy Assault Cannon Last Messages --------------- 01467_ K-01 Serf destroyed. 01468_ R-06 Scavenger collects Sml. Matter Pod. 01468_ Acquired 26 matter. 01468_ U-05 Engineer suffers critical hit (Destroy). 01470_ Penetrated by Slug. 01471_ U-05 Engineer destroyed. 01471_ Seismic Detector destroyed. 01472_ R-06 Scavenger collects Lgt. Ion Engine. 01476_ R-06 Scavenger collects Wheel. 01484_ Connecting with Terminal... >>Index(Terminals) Found 26 terminals. Downloaded coordinate data. 01484_ ALERT: Suspicious activity at Terminal F005. Dispatching Investigation squad. 01488_ Penetrated by Slug. 01491_ EXIT=FOUND 01492_ S-27 Virus destroyed. 01493_ K-01 Serf cleans the Power Conduit. 01493_ Machine Analyzer destroyed. Map ----- +----------------------------------------------------+ | ???????????????????????????# #?????????????# | | ???????????????????????????# #?????????????# | | ???????????????????????????# #?????????????# | | ???????????????????????????# #?????????????? | | ???????????????????????????#| #?????????????? | | ???????????????????????????#%! #?????????????? | | ???????????????????????????#!* #??"""????????? | | ???????????????????????????# #??"T"????????? | | ???????????????????????????# #?????????????? | | ???????????????????????????# #?????????????? | | ?????????????????????####### #?"""?????????? | | ??????????????????? """T""" #?"""?????????? | | ??????????????????# """ """ #?"""?????????? | | ??????????????????# #?????????????? | | ??????????????????# h#?"""?????????? | | ??????????????????# """"""""" +?"""?????????? | | ??????????????????# #?"""?????????? | | ??????????????????# """"""""" #?????????????? | | ???????????#?###??# k #?????????????? | | ???????? [ ## """"""""" ##############+ | | ???????? =s | | ??????? p """"""""" =%[s | | ??????? ss g ^ | | ?????? YH """"""""" g | | ?????? [ % s gg | | ?????? k @ u | | ???????# ^ | | ???????# ####+#################+########## | | ????????###??????????????????????# #??? | | ?????????????????????????????????# "" #??? | | ?????????????????????????????????# "" """" #??? | | ???????????????????"?"?"?"?"?????# "T """" #??? | | ???????????????????"?"?"?"?"?????# "" """" #??? | | ???????????????????"?"?"?"?"?????# "" """" #?? | | ???????????????????"?"?"?"?"?????# """" #?[ | | ???????????????????"?"?"?"?"?????# """" #### | | ???????????????????"?"?"?"?"?????# #??? | | ???????????????????"?"?"?"?"?????# #?"" | | ???????????????????"?"?"?"?"?????# #?"R | | ???????????????????"?"?"?"?"?????# ! #?"? | | ?????????????????????????????????##############??? | | ????????????????????????????????????????????????"" | | ????????????????????????????????????????????????"" | | ????????????????????????????????????????????????"" | | ?????????????????????????????????????????????????? | | ?????????????????????????????????????????????????? | | ?????????????????????????????????????????????????? | | ?????????????????????????????????????????????????? | | ?????????????????????????????????????????????????? | | ?????????????????????????????????????????????????? | +----------------------------------------------------+ Best States ------------- Heat Dissipation 34 Energy Generation 10 Energy Capacity 250 Matter Stores 300 Matter Capacity 300 Sight Range 20 Terrain Scan Density 10 Evasion (%) 50 Defensive Hacking 10 Item Schematics ----------------- None Robot Schematics ------------------ None Fabricated ------------ Nothing Alien Tech Used ----------------- None Achievements -------------- None Challenges ------------ None Game ------ Seed NuclearLegSink Manual? 0 Play Time 00:34:39 Cumulative 55.5 hours Start 2024.04.15 @ 21:09:36 End 2024.04.15 @ 21:40:56 Sessions 3 Manual Loads 0 Difficulty Rogue Special Mode None Game No. 46 Rogue 46 Adventurer 0 Explorer 0 Win Type - Total 5 Types 4/0/1/0/0/0/0/0/0 Lore% 45 Gallery% 32 Achievement% 36 Wizard Run 0 Options --------- Layout 0 ASCII 0 Keyboard 0 Movement Vi Keybinds 0 Fullscreen 2 Font 16/SmallcapsGlow Map View 64x51 Zoom Use 0% Tactical HUD 1 Map Filters NONE Filters NONE Steam X RUN: 42480837-d30c-4ec6-be10-08f9570274e2